bitfinex/quotes_BTCUSD_20250730
["timestamp","ask_amount","ask_price","bid_price","bid_amount"]
[1753860876839,0.05739778,118450.0,118440.0,0.7510292]
[1753860877768,0.05739778,118450.0,118440.0,0.75947193]
[1753860878000,0.05739778,118450.0,118440.0,0.7510292]
[1753860878235,0.07177666,118450.0,118440.0,0.7510292]
[1753860878472,0.07177666,118450.0,118440.0,0.75947193]
[1753860878720,0.07177666,118450.0,118440.0,0.7425864]
[1753860879401,0.08021861,118450.0,118440.0,0.73414353]
[1753860879667,0.08021861,118450.0,118440.0,0.56528173]
[1753860879881,0.09116571,118450.0,118440.0,0.33399038]
[1753860880102,0.08867446,118450.0,118440.0,0.33399038]
[1753860880311,0.09711662,118450.0,118440.0,0.3424334]
[1753860880771,0.09713889,118450.0,118440.0,0.3424334]
[1753860881193,0.08869673,118450.0,118440.0,0.35087635]
[1753860881387,0.08869673,118450.0,118440.0,0.52818109]
[1753860881526,0.08869673,118450.0,118440.0,0.51973822]
[1753860881740,0.08869699,118450.0,118440.0,0.75102957]
[1753860882434,0.09713908,118450.0,118440.0,0.75102957]
[1753860882646,0.10558124,118450.0,118440.0,0.56528173]
[1753860882962,0.10558201,118450.0,118440.0,0.32554729]
[1753860883194,0.10558201,118450.0,118440.0,0.2755473]
[1753860883413,0.10558201,118450.0,118440.0,0.32554729]
[1753860883802,0.10558194,118450.0,118440.0,0.33399038]
[1753860884005,0.07181322,118450.0,118440.0,0.50285225]
[1753860884442,0.08025503,118450.0,118440.0,0.50285225]
[1753860885102,0.08025503,118450.0,118440.0,0.49440916]
[1753860885537,0.07181322,118450.0,118440.0,0.50285225]
[1753860885758,0.06337149,118450.0,118440.0,0.3820952]
[1753860885981,0.07181337,118450.0,118440.0,0.49420916]
[1753860886200,0.08025539,118450.0,118440.0,0.49420916]
[1753860886422,0.07181337,118450.0,118440.0,0.44420917]
[1753860886647,0.07181337,118450.0,118440.0,0.49420916]
[1753860887021,0.07181337,118450.0,118440.0,0.1463473]
[1753860887022,0.31154674,118450.0,118440.0,0.1463473]
[1753860887023,0.81067358,118450.0,118440.0,0.12996]
[1753860887198,0.58624021,118450.0,118440.0,0.13004]
[1753860887414,0.55215021,118450.0,118440.0,0.13004]
[1753860887603,0.55215021,118450.0,118440.0,0.15476]
[1753860887980,0.49817268,118450.0,118440.0,0.15476]
[1753860888235,0.49817268,118450.0,118440.0,0.15983]
[1753860888866,0.49817268,118450.0,118440.0,0.13004]
[1753860894199,0.48973045,118450.0,118440.0,0.13004]
[1753860894678,0.49278045,118450.0,118440.0,0.13004]
[1753860894925,0.57725775,118450.0,118440.0,0.13004]
[1753860897351,0.59345775,118450.0,118440.0,0.13004]
[1753860898149,0.60955775,118450.0,118440.0,0.13004]
[1753860901550,0.57420775,118450.0,118440.0,0.13004]
[1753860903794,0.58950775,118450.0,118440.0,0.13004]
[1753860904011,0.59255775,118450.0,118440.0,0.13004]
[1753860904208,0.59255312,118450.0,118440.0,0.13004]
[1753860904417,0.91496312,118450.0,118440.0,0.13004]
[1753860905672,0.91191312,118450.0,118440.0,0.13004]
[1753860906106,0.91191305,118450.0,118440.0,0.13004]
[1753860908002,0.82743575,118450.0,118440.0,0.15294]
[1753860908206,0.82743575,118450.0,118440.0,0.15506]
[1753860908655,0.81158625,118450.0,118440.0,0.15506]
[1753860908862,0.82741925,118450.0,118440.0,0.15803]
[1753860910965,0.82741925,118450.0,118440.0,0.18903]
[1753860911190,0.82741925,118450.0,118440.0,0.13216]
[1753860911393,0.82741925,118450.0,118440.0,0.13004]
[1753860911838,0.82741925,118450.0,118440.0,0.15294]
[1753860912487,0.84566177,118450.0,118440.0,0.15294]
[1753860912963,0.61437042,118450.0,118440.0,0.15294]
[1753860913188,0.93013907,118450.0,118440.0,0.15294]
[1753860914024,0.93013907,118450.0,118440.0,0.15506]
[1753860914246,0.93013907,118450.0,118440.0,0.15803]
[1753860918194,0.854104,118450.0,118440.0,0.15803]
[1753860918439,0.854104,118450.0,118440.0,0.17453]
[1753860918661,0.854104,118450.0,118440.0,0.19013]
[1753860919541,0.62281265,118450.0,118440.0,0.19013]
[1753860919771,0.854104,118450.0,118440.0,0.19013]
[1753860919948,0.9385813,118450.0,118440.0,0.19013]
[1753860921896,0.93013907,118450.0,118440.0,0.19013]
[1753860923726,0.5965928,118450.0,118440.0,0.19013]
[1753860923951,0.83632588,118450.0,118440.0,0.19013]
[1753860924157,0.82788415,118450.0,118440.0,0.19013]
[1753860926084,0.81944177,118450.0,118440.0,0.19013]
[1753860930386,0.81946035,118450.0,118440.0,0.19013]
[1753860930803,0.84689436,118450.0,118440.0,0.19013]
[1753860931475,0.85533674,118450.0,118440.0,0.19013]
[1753860934046,0.88132674,118450.0,118440.0,0.19013]
[1753860935320,0.65003539,118450.0,118440.0,0.19013]
[1753860935536,0.88132674,118450.0,118440.0,0.19013]
[1753860935758,0.8813333,118450.0,118440.0,0.19013]
[1753860936208,0.88134612,118450.0,118440.0,0.19013]
[1753860936874,0.65005477,118450.0,118440.0,0.19013]
[1753860937093,0.88134612,118450.0,118440.0,0.19013]
[1753860938240,0.85740612,118450.0,118440.0,0.19013]
[1753860938454,0.59868076,118450.0,118440.0,0.19013]
[1753860938682,0.82997211,118450.0,118440.0,0.19013]
[1753860938870,0.85391211,118450.0,118440.0,0.19013]
[1753860940107,0.85347956,118450.0,118440.0,0.19013]
[1753860941463,0.85347956,118450.0,118440.0,0.16426]
[1753860941692,0.93795686,118450.0,118440.0,0.16214]
[1753860943903,0.93795423,118450.0,118440.0,0.16214]
[1753860946574,0.93003103,118450.0,118440.0,0.16214]
[1753860946780,0.93795221,118450.0,118440.0,0.16214]
[1753860947900,0.85347491,118450.0,118440.0,0.16214]
[1753860948326,0.85347491,118450.0,118440.0,0.13004]
[1753860948546,0.85643491,118450.0,118440.0,0.13004]
[1753860948766,0.8564334,118450.0,118440.0,0.13004]
[1753860950682,0.62514205,118450.0,118440.0,0.13004]
[1753860950886,0.8534734,118450.0,118440.0,0.16074]
[1753860951488,0.9379507,118450.0,118440.0,0.18349]
[1753860952293,0.93795051,118450.0,118440.0,0.18349]
[1753860952866,0.93795051,118450.0,118440.0,0.16074]
[1753860955496,0.85347321,118450.0,118440.0,0.16074]
[1753860955923,0.85347321,118450.0,118440.0,0.18349]
[1753860956800,0.84503083,118450.0,118440.0,0.18349]
[1753860957658,0.84502886,118450.0,118440.0,0.18349]
[1753860960474,0.84502861,118450.0,118440.0,0.18349]
[1753860960692,0.92950591,118450.0,118440.0,0.16074]
[1753860960917,0.92950591,118450.0,118440.0,0.13004]
[1753860962338,0.92950591,118450.0,118440.0,0.16214]
[1753860964511,0.93246591,118450.0,118440.0,0.13004]
[1753860964966,0.93246377,118450.0,118440.0,0.13004]
[1753860966862,0.69821242,118450.0,118440.0,0.13004]
[1753860967106,0.92950377,118450.0,118440.0,0.16134]
[1753860967729,0.92950347,118450.0,118440.0,0.16134]
[1753860967949,0.84502617,118450.0,118440.0,0.16134]
[1753860968358,0.84502617,118450.0,118440.0,0.18409]
[1753860969488,0.84502617,118450.0,118440.0,0.18909]
[1753860970414,0.85346844,118450.0,118440.0,0.18909]
[1753860970955,0.83592045,118450.0,118440.0,0.18873]
[1753860971186,0.85295167,118450.0,118440.0,0.18873]
[1753860971423,0.84450951,118450.0,118440.0,0.18873]
[1753860971648,0.87044951,118450.0,118440.0,0.18873]
[1753860972092,0.63915816,118450.0,118440.0,0.18574]
[1753860972314,0.87044951,118450.0,118440.0,0.18574]
[1753860975841,0.87044914,118450.0,118440.0,0.18574]
[1753860978502,0.87044599,118450.0,118440.0,0.18574]
[1753860981242,0.82747496,118450.0,118440.0,0.18887]
[1753860982629,0.59618361,118450.0,118440.0,0.18887]
[1753860982837,0.82747496,118450.0,118440.0,0.18887]
[1753860983056,0.82747556,118450.0,118440.0,0.18887]
[1753860983746,0.82239697,118450.0,118440.0,0.18887]
[1753860983992,0.59110562,118450.0,118440.0,0.18887]
[1753860984209,0.82454697,118450.0,118440.0,0.18887]
[1753860985745,0.69609982,118450.0,118440.0,0.18887]
[1753860986033,0.84780715,118450.0,118440.0,0.18887]
[1753860986607,0.84780726,118450.0,118440.0,0.18887]
[1753860991497,0.59110591,118450.0,118440.0,0.18887]
[1753860991721,0.82239726,118450.0,118440.0,0.18887]
[1753860994669,0.84780726,118450.0,118440.0,0.18887]
[1753860994914,0.93228693,118450.0,118440.0,0.18887]
[1753860995811,0.93228693,118450.0,118440.0,0.18574]
[1753860996263,0.93228693,118450.0,118440.0,0.16299]
[1753860999321,0.93228693,118450.0,118440.0,0.18627]
[1753861001259,0.93228695,118450.0,118440.0,0.18627]
[1753861001729,0.84780965,118450.0,118440.0,0.18627]
[1753861001961,0.8478055,118450.0,118440.0,0.18627]
[1753861002201,0.8478055,118450.0,118440.0,0.1894]
[1753861004010,0.41381431,118450.0,118440.0,0.1894]
[1753861004230,0.43914094,118450.0,118440.0,0.1894]
[1753861004450,0.44758275,118450.0,118440.0,0.1894]
[1753861005367,0.60798855,118450.0,118440.0,0.1894]
[1753861005823,0.43914094,118450.0,118440.0,0.42069135]
[1753861006099,0.41381431,118450.0,118440.0,0.58955322]
[1753861006325,0.39556312,118450.0,118440.0,0.93061028]
[1753861006546,0.37892484,118450.0,118440.0,1.21190162]
[1753861006994,0.363083,118450.0,118440.0,1.21190162]
[1753861007219,0.33771,118450.0,118440.0,1.21090162]
[1753861007692,0.33771,118450.0,118440.0,0.98161027]
[1753861008405,0.33771,118450.0,118440.0,0.97961027]
[1753861008637,0.33771,118450.0,118440.0,1.18253027]
[1753861010031,0.33771,118450.0,118440.0,1.18653027]
[1753861010489,0.33771,118450.0,118440.0,1.18853027]
[1753861036598,0.33771,118450.0,118440.0,0.72594757]
[1753861037022,0.33771,118450.0,118440.0,1.18853027]
[1753861040108,0.33771,118450.0,118440.0,1.05989027]
[1753861040365,0.33771,118450.0,118440.0,1.18845027]
[1753861044551,0.33771,118450.0,118440.0,1.05989027]
[1753861044760,0.33771,118450.0,118440.0,1.18841027]
[1753861048081,0.3642,118450.0,118440.0,0.61610758]
[1753861048309,0.36724,118450.0,118440.0,0.89739892]
[1753861048534,0.36724,118450.0,118440.0,0.84739893]
[1753861049223,0.3642,118450.0,118440.0,1.16059027]
[1753861049438,0.3642,118450.0,118440.0,1.18726027]
[1753861049711,0.3642,118450.0,118440.0,1.19050027]
[1753861057464,0.3642,118450.0,118440.0,1.18726027]
[1753861057705,0.3642,118450.0,118440.0,1.07869028]
[1753861057933,0.3642,118450.0,118440.0,1.12869027]
[1753861059071,0.3642,118450.0,118440.0,1.16858027]
[1753861059316,0.3642,118450.0,118440.0,1.18378027]
[1753861059999,0.3642,118450.0,118440.0,0.95446892]
[1753861060231,0.3642,118450.0,118440.0,1.18900027]
[1753861062756,0.60697316,118450.0,118440.0,0.59922226]
[1753861063004,0.64035713,118450.0,118440.0,0.43880327]
[1753861063254,0.65605706,118450.0,118440.0,0.43880327]
[1753861063511,0.64761504,118450.0,118440.0,0.49603067]
[1753861063783,0.6882546,118450.0,118440.0,0.59922219]
[1753861064009,0.44007914,118450.0,118440.0,0.48758787]
[1753861064225,0.42437914,118450.0,118440.0,0.61610787]
[1753861064438,0.42437914,118450.0,118440.0,0.84739929]
[1753861064680,0.44126325,118450.0,118440.0,0.83895649]
[1753861065110,0.44126325,118450.0,118440.0,0.60766514]
[1753861065345,0.44126325,118450.0,118440.0,0.43036039]
[1753861065557,0.45666325,118450.0,118440.0,0.43880341]
[1753861066012,0.46510548,118450.0,118440.0,0.43036039]
[1753861066203,0.44822109,118450.0,118440.0,0.43880341]
[1753861066491,0.45666318,118450.0,118440.0,0.44724636]
[1753861066928,0.43133726,118450.0,118440.0,0.62455103]
[1753861067144,0.39943726,118450.0,118440.0,0.67455102]
[1753861067359,0.39943074,118450.0,118440.0,0.68299375]
[1753861067543,0.39638677,118450.0,118440.0,0.68299375]
[1753861067686,0.40482865,118450.0,118440.0,0.68299375]
[1753861067896,0.42171283,118450.0,118440.0,0.60766528]
[1753861068097,0.42171283,118450.0,118440.0,0.66610822]
[1753861068303,0.42171283,118450.0,118440.0,0.65766527]
[1753861068513,0.42171283,118450.0,118440.0,0.60766528]
[1753861069145,0.41327067,118450.0,118440.0,0.61610823]
[1753861070533,0.40535616,118450.0,118440.0,0.61610823]
[1753861070739,0.4132685,118450.0,118440.0,0.61610823]
[1753861071048,0.4132685,118450.0,118440.0,0.41318823]
[1753861071258,0.42171066,118450.0,118440.0,0.40474528]
[1753861071480,0.4297685,118450.0,118440.0,0.40474528]
[1753861071691,0.43821059,118450.0,118440.0,0.41318823]
[1753861071923,0.44665282,118450.0,118440.0,0.22744039]
[1753861072152,0.68812278,118450.0,118440.0,0.2189973]
[1753861072398,0.92456358,118450.0,118440.0,0.006]
[1753861072623,0.92456358,118450.0,118440.0,0.13452]
[1753861073056,0.94149435,118450.0,118440.0,0.13452]
[1753861073504,0.94149435,118450.0,118440.0,0.13252]
[1753861073988,0.710203,118450.0,118440.0,0.13252]
[1753861074213,0.94149435,118450.0,118440.0,0.12852]
[1753861074434,0.710203,118450.0,118440.0,0.12852]
[1753861074658,0.94149435,118450.0,118440.0,0.13152]
[1753861074880,0.94149435,118450.0,118440.0,0.18151999]
[1753861075344,0.94742658,118450.0,118440.0,0.18151999]
[1753861075622,0.94741542,118450.0,118440.0,0.18151999]
[1753861077055,0.94741542,118450.0,118440.0,0.13152]
[1753861078091,0.94741058,118450.0,118440.0,0.13152]
[1753861080717,0.94739813,118450.0,118440.0,0.13152]
[1753861087941,0.94739805,118450.0,118440.0,0.13152]
[1753861088363,0.93199805,118450.0,118440.0,0.13152]
[1753861088585,0.6842067,118450.0,118440.0,0.18151999]
[1753861088786,0.82780075,118450.0,118440.0,0.18151999]
[1753861090165,0.82780075,118450.0,118440.0,0.13152]
[1753861090382,0.82780075,118450.0,118440.0,0.18151999]
[1753861090631,0.82780226,118450.0,118440.0,0.18151999]
[1753861091287,0.82780226,118450.0,118440.0,0.13152]
[1753861091500,0.82780226,118450.0,118440.0,0.18151999]
[1753861091979,0.91227956,118450.0,118440.0,0.18151999]
[1753861092564,0.91227956,118450.0,118440.0,0.13152]
[1753861095970,0.68098821,118450.0,118440.0,0.13152]
[1753861096203,0.82780226,118450.0,118440.0,0.20510999]
[1753861096454,0.82780226,118450.0,118440.0,0.20724999]
[1753861098930,0.82782616,118450.0,118440.0,0.20724999]
[1753861100433,0.82782616,118450.0,118440.0,0.18151999]
[1753861100663,0.91230346,118450.0,118440.0,0.13152]
[1753861100857,0.91230346,118450.0,118440.0,0.18151999]
[1753861101982,0.91230346,118450.0,118440.0,0.13152]
[1753861102164,0.91230346,118450.0,118440.0,0.18151999]
[1753861103750,0.91230346,118450.0,118440.0,0.13152]
[1753861103975,0.91230346,118450.0,118440.0,0.18151999]
[1753861105312,0.91230346,118450.0,118440.0,0.13152]
[1753861107451,0.91230346,118450.0,118440.0,0.003]
[1753861107697,1.19597474,118450.0,118440.0,0.13148]
[1753861108199,1.21342376,118450.0,118440.0,0.13148]
[1753861108462,0.75084106,118450.0,118440.0,0.13148]
[1753861108712,0.98213241,118450.0,118440.0,0.13148]
[1753861111205,1.21342376,118450.0,118440.0,0.13148]
[1753861112669,1.55342376,118450.0,118440.0,0.13148]
[1753861117406,1.55342376,118450.0,118440.0,0.23148]
[1753861121369,1.32213241,118450.0,118440.0,0.23148]
[1753861121618,1.55341467,118450.0,118440.0,0.23148]
[1753861123320,1.55341404,118450.0,118440.0,0.23148]
[1753861123989,1.09083134,118450.0,118440.0,0.23148]
[1753861124206,1.20351539,118450.0,118440.0,0.23148]
[1753861124418,1.64101539,118450.0,118440.0,0.23148]
[1753861124648,1.64101539,118450.0,118440.0,0.25689]
[1753861125974,1.6410136,118450.0,118440.0,0.25689]
[1753861126396,1.7254909,118450.0,118440.0,0.25689]
[1753861126846,1.7254909,118450.0,118440.0,0.23148]
[1753861128672,1.72549223,118450.0,118440.0,0.23148]
[1753861129100,1.64101493,118450.0,118440.0,0.23148]
[1753861129329,1.64101493,118450.0,118440.0,0.25491]
[1753861130206,1.64101493,118450.0,118440.0,0.23148]
[1753861130851,1.64101493,118450.0,118440.0,0.25491]
[1753861131075,1.64101493,118450.0,118440.0,0.25708]
[1753861131296,1.72549223,118450.0,118440.0,0.25708]
[1753861132827,1.22282764,118450.0,118440.0,0.2906]
[1753861133046,1.46256122,118450.0,118440.0,0.2906]
[1753861133478,1.4710036,118450.0,118440.0,0.2906]
[1753861135037,1.63985121,118450.0,118440.0,0.2906]
[1753861135270,1.72432851,118450.0,118440.0,0.2906]
[1753861135919,1.71588663,118450.0,118440.0,0.2906]
[1753861139368,1.18849465,118450.0,118440.0,0.52189135]
[1753861139594,1.19693638,118450.0,118440.0,0.52189135]
[1753861139820,1.20537826,118450.0,118440.0,0.52189135]
[1753861140942,1.21382035,118450.0,118440.0,0.52189135]
[1753861141160,1.21382028,118450.0,118440.0,0.52189135]
[1753861141404,1.21385454,118450.0,118440.0,0.2906]
[1753861141616,1.21385454,118450.0,118440.0,0.103]
[1753861141617,2.08275709,118450.0,118440.0,0.103]
[1753861141838,2.12626853,118450.0,118440.0,0.23144]
[1753861142055,2.10554898,118450.0,118440.0,0.103]
[1753861142270,2.13591449,118450.0,118440.0,0.23144]
[1753861142722,2.11311378,118450.0,118440.0,0.23144]
[1753861142938,1.95911425,118450.0,118440.0,0.23144]
[1753861143374,1.96111425,118450.0,118440.0,0.23144]
[1753861143596,1.96111425,118450.0,118440.0,0.103]
[1753861143817,1.96111425,118450.0,118440.0,0.23144]
[1753861144031,1.96111318,118450.0,118440.0,0.23144]
[1753861144220,1.96111318,118450.0,118440.0,0.22844]
[1753861144437,1.96211318,118450.0,118440.0,0.22844]
[1753861145062,1.52461318,118450.0,118440.0,0.22844]
[1753861145267,1.54739714,118450.0,118440.0,0.22844]
[1753861146869,1.5473939,118450.0,118440.0,0.22844]
[1753861151254,1.5156939,118450.0,118440.0,0.22844]
[1753861152792,1.5312939,118450.0,118440.0,0.22844]
[1753861153291,1.50093721,118450.0,118440.0,0.22844]
[1753861153513,1.51603721,118450.0,118440.0,0.22844]
[1753861153742,1.51603721,118450.0,118440.0,0.1]
[1753861153743,1.5463939,118450.0,118440.0,0.1]
[1753861153969,1.85497707,118450.0,118440.0,0.22848]
[1753861155077,1.5463939,118450.0,118440.0,0.22848]
[1753861155300,1.51603721,118450.0,118440.0,0.22848]
[1753861155801,1.85497707,118450.0,118440.0,0.22848]
[1753861156034,6.36663615,118450.0,118440.0,0.1]
[1753861156264,6.3873557,118450.0,118440.0,0.09450198]
[1753861156490,6.35699901,118450.0,118440.0,0.09450198]
[1753861156720,6.35699901,118450.0,118440.0,0.08625463]
[1753861157180,6.36752676,118450.0,118440.0,0.08625463]
[1753861157418,5.75826308,118450.0,118440.0,0.08625463]
[1753861157641,6.37542942,118450.0,118440.0,0.08625463]
[1753861158541,6.35698598,118450.0,118440.0,0.08625463]
[1753861159860,0.91534639,118430.0,118420.0,0.12852841]
[1753861160094,1.46811221,118430.0,118420.0,4.841e-05]
[1753861160307,1.62364221,118430.0,118420.0,4.841e-05]
[1753861160518,1.62358115,118430.0,118420.0,4.841e-05]
[1753861161208,1.62358115,118430.0,118420.0,0.00304841]
[1753861161666,1.67405778,118430.0,118420.0,0.00304841]
[1753861161906,1.62405778,118430.0,118420.0,0.00404841]
[1753861162599,1.6915068,118430.0,118420.0,0.00404841]
[1753861163049,1.69148899,118430.0,118420.0,0.00404841]
[1753861165874,1.69148159,118430.0,118420.0,0.00404841]
[1753861166754,1.71422951,118430.0,118420.0,0.00404841]
[1753861167391,5.82389751,118430.0,118420.0,0.00404841]
[1753861167622,1.71422951,118430.0,118420.0,0.00404841]
[1753861167873,5.97389751,118430.0,118420.0,0.00404841]
[1753861168103,0.55885931,118400.0,118390.0,0.0004]
[1753861168341,5.68097055,118400.0,118390.0,0.00044841]
[1753861168594,6.03918055,118400.0,118390.0,0.00044841]
[1753861168810,6.10653208,118400.0,118390.0,0.00044841]
[1753861169025,6.08581253,118400.0,118390.0,0.00044841]
[1753861169237,6.11614367,118400.0,118390.0,0.00044841]
[1753861169453,6.13686322,118400.0,118390.0,0.00244841]
[1753861169931,5.79621356,118400.0,118390.0,0.00244841]
[1753861170808,6.10479673,118400.0,118390.0,0.00244841]
[1753861171048,6.12039673,118400.0,118390.0,0.00244841]
[1753861171267,6.09321559,118400.0,118390.0,0.00244841]
[1753861171479,6.16469514,118400.0,118390.0,0.00244841]
[1753861172575,6.17979514,118400.0,118390.0,0.00244841]
[1753861172995,6.17979514,118400.0,118390.0,0.00044841]
[1753861173209,6.18179514,118400.0,118390.0,0.00044841]
[1753861174543,6.16107559,118400.0,118390.0,0.00044841]
[1753861174763,6.15792559,118400.0,118390.0,0.00044841]
[1753861175022,6.18332159,118400.0,118390.0,0.00044841]
[1753861175238,6.16922159,118400.0,118390.0,0.00044841]
[1753861176107,6.18994114,118400.0,118390.0,0.00044841]
[1753861176348,6.15362159,118400.0,118390.0,0.00044841]
[1753861177170,6.10808655,118400.0,118390.0,0.00044841]
[1753861179190,0.56737969,118390.0,118380.0,0.14296]
[1753861179419,1.63456162,118390.0,118380.0,0.14508835]
[1753861179820,1.65995762,118390.0,118380.0,0.16108835]
[1753861180023,1.66840406,118390.0,118380.0,0.16108835]
[1753861180361,1.63817532,118390.0,118380.0,0.16108835]
[1753861180578,1.02981847,118390.0,118380.0,0.16208835]
[1753861180790,1.35529423,118390.0,118380.0,0.16208835]
[1753861180990,1.34684765,118390.0,118380.0,0.16208835]
[1753861181198,1.31661689,118390.0,118380.0,0.16208835]
[1753861181415,1.32506347,118390.0,118380.0,0.16208835]
[1753861181624,1.49399665,118390.0,118380.0,0.16208835]
[1753861181853,1.4770421,118390.0,118380.0,0.16208835]
[1753861182859,1.46859566,118390.0,118380.0,0.16208835]
[1753861183313,1.16001249,118390.0,118380.0,0.16208835]
[1753861183450,1.46859566,118390.0,118380.0,0.16208835]
[1753861184854,1.46861415,118390.0,118380.0,0.16208835]
[1753861185477,1.46016757,118390.0,118380.0,0.16208835]
[1753861186384,1.41482445,118390.0,118380.0,0.16208835]
[1753861187208,1.41482445,118390.0,118380.0,0.15193423]
[1753861187423,1.46024008,118390.0,118380.0,0.15193423]
[1753861187655,1.45434147,118390.0,118380.0,0.15193423]
[1753861187860,1.46025534,118390.0,118380.0,0.15193423]
[1753861189265,1.10625654,118390.0,118380.0,0.15193423]
[1753861189501,1.41483971,118390.0,118380.0,0.15193423]
[1753861190052,1.11470312,118390.0,118380.0,0.15193423]
[1753861190285,1.25435283,118390.0,118380.0,0.15193423]
[1753861190612,0.80482322,118390.0,118380.0,0.15193423]
[1753861191049,0.81326945,118390.0,118380.0,0.15193423]
[1753861191250,0.82171582,118390.0,118380.0,0.15193423]
[1753861191796,0.83016233,118390.0,118380.0,0.15193423]
[1753861191998,0.90619312,118390.0,118380.0,0.15193423]
[1753861193192,0.89774675,118390.0,118380.0,0.15193423]
[1753861194319,0.90619312,118390.0,118380.0,0.15193423]
[1753861195098,0.90619305,118390.0,118380.0,0.15193423]
[1753861195572,0.91463949,118390.0,118380.0,0.15193423]
[1753861196102,0.92308607,118390.0,118380.0,0.15193423]
[1753861196336,1.22322266,118390.0,118380.0,0.15193423]
[1753861196510,1.22322316,118390.0,118380.0,0.15193423]
[1753861196725,1.50230013,118390.0,118380.0,0.09337423]
[1753861196931,1.50230013,118390.0,118380.0,0.09129423]
[1753861196932,1.50526013,118390.0,118380.0,0.09129423]
[1753861197137,1.45981287,118390.0,118380.0,0.08579433]
[1753861198686,1.45985829,118390.0,118380.0,0.08579433]
[1753861198903,1.45985829,118390.0,118380.0,0.11679433]
[1753861199117,1.45689829,118390.0,118380.0,0.11679433]
[1753861200568,1.45689829,118390.0,118380.0,0.14154433]
[1753861200786,1.45689829,118390.0,118380.0,0.14672433]
[1753861201012,1.44845185,118390.0,118380.0,0.14672433]
[1753861201729,1.49403947,118390.0,118380.0,0.11679433]
[1753861201993,1.45141185,118390.0,118380.0,0.08579433]
[1753861202273,1.14282868,118390.0,118380.0,0.08579433]
[1753861202511,1.57993185,118390.0,118380.0,0.08579433]
[1753861205344,1.62552401,118390.0,118380.0,0.08579433]
[1753861206010,1.62256401,118390.0,118380.0,0.08579433]
[1753861208538,1.62262658,118390.0,118380.0,0.08579433]
[1753861208993,1.62558658,118390.0,118380.0,0.08579433]
[1753861210517,1.64058658,118390.0,118380.0,0.08579433]
[1753861210757,1.62558658,118390.0,118380.0,0.08579433]
[1753861211184,1.60975516,118390.0,118380.0,0.08579433]
[1753861211394,1.69068432,118390.0,118380.0,0.08579433]
[1753861211604,1.74144432,118390.0,118380.0,0.08579433]
[1753861212545,1.72634432,118390.0,118380.0,0.08579433]
[1753861213404,5.83601232,118390.0,118380.0,0.08579433]
[1753861213644,5.85221232,118390.0,118380.0,0.08579433]
[1753861213860,5.83601232,118390.0,118380.0,0.08579433]
[1753861214076,5.83600748,118390.0,118380.0,0.08579433]
[1753861214299,5.86639449,118390.0,118380.0,0.08579433]
[1753861215169,5.88159449,118390.0,118380.0,0.08579433]
[1753861215391,5.82080233,118390.0,118380.0,0.08579433]
[1753861216620,5.82080033,118390.0,118380.0,0.08579433]
[1753861217916,5.83402158,118390.0,118380.0,0.08579433]
[1753861219351,5.8181936,118390.0,118380.0,0.08579433]
[1753861219517,5.83401525,118390.0,118380.0,0.08579433]
[1753861221336,5.81656623,118390.0,118380.0,0.08579433]
[1753861224084,5.81360623,118390.0,118380.0,0.08579433]
[1753861224769,5.81360623,118390.0,118380.0,0.11669433]
[1753861225272,5.85919839,118390.0,118380.0,0.11669433]
[1753861225487,5.81360623,118390.0,118380.0,0.11669433]
[1753861226328,5.85919839,118390.0,118380.0,0.11669433]
[1753861229322,5.85919839,118390.0,118380.0,0.08579433]
[1753861229803,5.86215839,118390.0,118380.0,0.08579433]
[1753861230265,5.86215948,118390.0,118380.0,0.08579433]
[1753861230493,5.73363948,118390.0,118380.0,0.08579433]
[1753861230719,5.86215948,118390.0,118380.0,0.08579433]
[1753861232374,5.85920011,118390.0,118380.0,0.08579433]
[1753861232649,5.73068011,118390.0,118380.0,0.08579433]
[1753861232879,5.85920011,118390.0,118380.0,0.08579433]
[1753861236145,5.87960913,118390.0,118380.0,0.08579433]
[1753861236383,5.88072212,118390.0,118380.0,0.08579433]
[1753861237336,5.88072212,118390.0,118380.0,0.08029353]
[1753861237569,5.86750087,118390.0,118380.0,0.07929353]
[1753861237805,5.86950087,118390.0,118380.0,0.07929353]
[1753861238233,5.8792413,118390.0,118380.0,0.07929353]
[1753861238764,5.83364914,118390.0,118380.0,0.07929353]
[1753861239695,5.80214914,118390.0,118380.0,0.07929353]
[1753861239847,5.49356597,118390.0,118380.0,0.07929353]
[1753861240069,5.79918914,118390.0,118380.0,0.07929353]
[1753861240266,5.84475294,118390.0,118380.0,0.07929353]
[1753861241117,5.84971294,118390.0,118380.0,0.07929353]
[1753861241967,5.83389129,118390.0,118380.0,0.07929353]
[1753861242130,5.84971213,118390.0,118380.0,0.07929353]
[1753861245882,5.84377729,118390.0,118380.0,0.07929353]
[1753861246058,5.84970888,118390.0,118380.0,0.07929353]
[1753861246679,1.74004088,118390.0,118380.0,0.07929353]
[1753861246983,5.84970888,118390.0,118380.0,0.07929353]
[1753861247423,1.74004088,118390.0,118380.0,0.07929353]
[1753861247644,5.84674888,118390.0,118380.0,0.07929353]
[1753861248762,1.73708088,118390.0,118380.0,0.07929353]
[1753861249076,5.84674888,118390.0,118380.0,0.07929353]
[1753861249532,5.8467485,118390.0,118380.0,0.07929353]
[1753861249954,5.53816533,118390.0,118380.0,0.07929353]
[1753861250083,5.8467485,118390.0,118380.0,0.07929353]
[1753861251401,5.53816533,118390.0,118380.0,0.07929353]
[1753861251592,5.8467485,118390.0,118380.0,0.13844353]
[1753861252792,5.8467485,118390.0,118380.0,0.13538353]
[1753861254053,5.8467485,118390.0,118380.0,0.10939353]
[1753861257702,5.84674825,118390.0,118380.0,0.10939353]
[1753861258597,5.84674825,118390.0,118380.0,0.07929353]
[1753861259452,5.53816508,118390.0,118380.0,0.07929353]
[1753861259576,5.84674825,118390.0,118380.0,0.07929353]
[1753861260011,5.84674825,118390.0,118380.0,0.11029353]
[1753861260485,5.84674825,118390.0,118380.0,0.13416353]
[1753861260661,5.36708606,118390.0,118380.0,0.13628353]
[1753861260835,1.38593806,118390.0,118380.0,0.13934353]
[1753861261044,1.15665806,118390.0,118380.0,0.13934353]
[1753861261308,1.16424023,118390.0,118380.0,0.13934353]
[1753861262403,1.13457669,118390.0,118380.0,0.13934353]
[1753861262605,1.16423639,118390.0,118380.0,0.13934353]
[1753861262821,1.47281645,118390.0,118380.0,0.13934353]
[1753861263700,1.16423328,118390.0,118380.0,0.13934353]
[1753861263915,1.47281645,118390.0,118380.0,0.13934353]
[1753861264129,1.16423328,118390.0,118380.0,0.13934353]
[1753861264574,1.1338639,118390.0,118380.0,0.13934353]
[1753861265910,1.44244707,118390.0,118380.0,0.13934353]
[1753861266341,1.1338639,118390.0,118380.0,0.13934353]
[1753861267957,0.88045321,118390.0,118380.0,0.4479267]
[1753861268179,0.8128685,118390.0,118380.0,0.4479267]
[1753861268383,0.8128685,118390.0,118380.0,0.5764467]